Workbook

Sheet raw data
A1: 2000 | B1: 1400+600 | C1: router-response | D1: router-response | E1: router-response | F1: router-response | G1: router-response | H1: router-response | I1: router-response | J1: room where device located
A2: ID | B2: Train/Test | C2: X1 | D2: X2 | E2: X3 | F2: X4 | G2: X5 | H2: X6 | I2: X7 | J2: Y
A3: 1 | B3: Train | C3: -58 | D3: -56 | E3: -52 | F3: -54 | G3: -52 | H3: -87 | I3: -84 | J3: 4
A4: 2 | B4: Train | C4: -57 | D4: -59 | E4: -44 | F4: -60 | G4: -56 | H4: -87 | I4: -85 | J4: 4
A5: 3 | B5: Train | C5: -48 | D5: -54 | E5: -52 | F5: -54 | G5: -58 | H5: -87 | I5: -89 | J5: 3
A6: 4 | B6: Train | C6: -55 | D6: -53 | E6: -57 | F6: -67 | G6: -64 | H6: -80 | I6: -78 | J6: 1
A7: 5 | B7: Train | C7: -14 | D7: -54 | E7: -57 | F7: -15 | G7: -69 | H7: -82 | I7: -71 | J7: 2
A8: 6 | B8: Train | C8: -63 | D8: -59 | E8: -61 | F8: -68 | G8: -71 | H8: -81 | I8: -87 | J8: 1
A9: 7 | B9: Train | C9: -41 | D9: -57 | E9: -55 | F9: -43 | G9: -65 | H9: -71 | I9: -76 | J9: 2
A10: 8 | B10: Train | C10: -62 | D10: -63 | E10: -62 | F10: -65 | G10: -68 | H10: -87 | I10: -86 | J10: 1
A11: 9 | B11: Train | C11: -40 | D11: -59 | E11: -57 | F11: -43 | G11: -74 | H11: -65 | I11: -66 | J11: 2
A12: 10 | B12: Train | C12: -46 | D12: -54 | E12: -53 | F12: -48 | G12: -64 | H12: -78 | I12: -79 | J12: 3
A13: 11 | B13: Train | C13: -57 | D13: -54 | E13: -49 | F13: -61 | G13: -43 | H13: -79 | I13: -85 | J13: 4
A14: 12 | B14: Train | C14: -57 | D14: -51 | E14: -56 | F14: -57 | G14: -50 | H14: -88 | I14: -86 | J14: 4
A15: 13 | B15: Train | C15: -53 | D15: -56 | E15: -51 | F15: -50 | G15: -61 | H15: -83 | I15: -81 | J15: 3
A16: 14 | B16: Train | C16: -44 | D16: -57 | E16: -62 | F16: -41 | G16: -75 | H16: -65 | I16: -68 | J16: 2
A17: 15 | B17: Train | C17: -51 | D17: -59 | E17: -51 | F17: -48 | G17: -67 | H17: -79 | I17: -79 | J17: 3
A18: 16 | B18: Train | C18: -59 | D18: -59 | E18: -52 | F18: -60 | G18: -51 | H18: -87 | I18: -86 | J18: 4
A19: 17 | B19: Train | C19: -61 | D19: -56 | E19: -55 | F19: -63 | G19: -47 | H19: -85 | I19: -89 | J19: 4
A20: 18 | B20: Train | C20: -71 | D20: -62 | E20: -63 | F20: -69 | G20: -75 | H20: -85 | I20: -87 | J20: 1
A21: 19 | B21: Train | C21: -38 | D21: -53 | E21: -53 | F21: -38 | G21: -66 | H21: -70 | I21: -69 | J21: 2
A22: 20 | B22: Train | C22: -59 | D22: -49 | E22: -53 | F22: -59 | G22: -62 | H22: -81 | I22: -83 | J22: 1
A23: 21 | B23: Train | C23: -51 | D23: -57 | E23: -59 | F23: -45 | G23: -77 | H23: -75 | I23: -81 | J23: 2
A24: 22 | B24: Train | C24: -37 | D24: -52 | E24: -57 | F24: -36 | G24: -71 | H24: -66 | I24: -75 | J24: 2
A25: 23 | B25: Train | C25: -48 | D25: -55 | E25: -58 | F25: -52 | G25: -64 | H25: -92 | I25: -79 | J25: 3
A26: 24 | B26: Train | C26: -37 | D26: -57 | E26: -55 | F26: -40 | G26: -75 | H26: -71 | I26: -64 | J26: 2
A27: 25 | B27: Train | C27: -40 | D27: -56 | E27: -58 | F27: -42 | G27: -67 | H27: -62 | I27: -71 | J27: 2
A28: 26 | B28: Train | C28: -64 | D28: -57 | E28: -62 | F28: -68 | G28: -71 | H28: -85 | I28: -85 | J28: 1
A29: 27 | B29: Train | C29: -38 | D29: -51 | E29: -53 | F29: -38 | G29: -63 | H29: -72 | I29: -73 | J29: 2
A30: 28 | B30: Train | C30: -38 | D30: -50 | E30: -71 | F30: -39 | G30: -68 | H30: -78 | I30: -74 | J30: 2
A31: 29 | B31: Train | C31: -35 | D31: -53 | E31: -58 | F31: -44 | G31: -63 | H31: -68 | I31: -71 | J31: 2
A32: 30 | B32: Train | C32: -59 | D32: -52 | E32: -55 | F32: -59 | G32: -52 | H32: -88 | I32: -87 | J32: 4
A33: 31 | B33: Train | C33: -57 | D33: -53 | E33: -54 | F33: -61 | G33: -73 | H33: -86 | I33: -81 | J33: 1
A34: 32 | B34: Train | C34: -59 | D34: -55 | E34: -46 | F34: -66 | G34: -50 | H34: -86 | I34: -91 | J34: 4
A35: 33 | B35: Train | C35: -48 | D35: -55 | E35: -54 | F35: -48 | G35: -67 | H35: -85 | I35: -81 | J35: 3
A36: 34 | B36: Train | C36: -67 | D36: -56 | E36: -67 | F36: -70 | G36: -74 | H36: -81 | I36: -82 | J36: 1
A37: 35 | B37: Train | C37: -63 | D37: -57 | E37: -65 | F37: -69 | G37: -77 | H37: -81 | I37: -85 | J37: 1
A38: 36 | B38: Train | C38: -63 | D38: -58 | E38: -52 | F38: -59 | G38: -51 | H38: -88 | I38: -94 | J38: 4
A39: 37 | B39: Train | C39: -59 | D39: -59 | E39: -48 | F39: -66 | G39: -50 | H39: -86 | I39: -94 | J39: 4
A40: 38 | B40: Train | C40: -63 | D40: -54 | E40: -55 | F40: -64 | G40: -72 | H40: -84 | I40: -81 | J40: 1
A41: 39 | B41: Train | C41: -64 | D41: -58 | E41: -47 | F41: -61 | G41: -52 | H41: -85 | I41: -86 | J41: 4
A42: 40 | B42: Train | C42: -51 | D42: -52 | E42: -52 | F42: -50 | G42: -69 | H42: -78 | I42: -86 | J42: 3
A43: 41 | B43: Train | C43: -65 | D43: -61 | E43: -63 | F43: -63 | G43: -69 | H43: -82 | I43: -84 | J43: 1
A44: 42 | B44: Train | C44: -37 | D44: -55 | E44: -57 | F44: -42 | G44: -63 | H44: -65 | I44: -64 | J44: 2
A45: 43 | B45: Train | C45: -51 | D45: -52 | E45: -51 | F45: -54 | G45: -61 | H45: -79 | I45: -76 | J45: 3
A46: 44 | B46: Train | C46: -63 | D46: -54 | E46: -47 | F46: -64 | G46: -50 | H46: -83 | I46: -88 | J46: 4
A47: 45 | B47: Train | C47: -49 | D47: -52 | E47: -56 | F47: -48 | G47: -55 | H47: -81 | I47: -82 | J47: 3
A48: 46 | B48: Train | C48: -60 | D48: -57 | E48: -55 | F48: -65 | G48: -51 | H48: -94 | I48: -86 | J48: 4
A49: 47 | B49: Train | C49: -62 | D49: -59 | E49: -62 | F49: -63 | G49: -65 | H49: -87 | I49: -87 | J49: 1
A50: 48 | B50: Train | C50: -38 | D50: -58 | E50: -60 | F50: -42 | G50: -66 | H50: -82 | I50: -79 | J50: 2
A51: 49 | B51: Train | C51: -58 | D51: -50 | E51: -43 | F51: -56 | G51: -55 | H51: -83 | I51: -87 | J51: 4
A52: 50 | B52: Train | C52: -48 | D52: -55 | E52: -58 | F52: -50 | G52: -63 | H52: -81 | I52: -86 | J52: 3
A53: 51 | B53: Train | C53: -64 | D53: -57 | E53: -52 | F53: -60 | G53: -40 | H53: -87 | I53: -87 | J53: 4
A54: 52 | B54: Train | C54: -38 | D54: -53 | E54: -51 | F54: -39 | G54: -68 | H54: -76 | I54: -72 | J54: 2
A55: 53 | B55: Train | C55: -66 | D55: -56 | E55: -54 | F55: -69 | G55: -65 | H55: -82 | I55: -82 | J55: 1
A56: 54 | B56: Train | C56: -58 | D56: -54 | E56: -53 | F56: -60 | G56: -47 | H56: -82 | I56: -83 | J56: 4
A57: 55 | B57: Train | C57: -58 | D57: -49 | E57: -55 | F57: -60 | G57: -70 | H57: -78 | I57: -80 | J57: 1
A58: 56 | B58: Train | C58: -63 | D58: -56 | E58: -60 | F58: -62 | G58: -70 | H58: -84 | I58: -91 | J58: 1
A59: 57 | B59: Train | C59: -59 | D59: -51 | E59: -49 | F59: -63 | G59: -45 | H59: -86 | I59: -83 | J59: 4
A60: 58 | B60: Train | C60: -62 | D60: -57 | E60: -60 | F60: -64 | G60: -67 | H60: -80 | I60: -88 | J60: 1
A61: 59 | B61: Train | C61: -48 | D61: -54 | E61: -49 | F61: -59 | G61: -63 | H61: -78 | I61: -80 | J61: 3
A62: 60 | B62: Train | C62: -49 | D62: -56 | E62: -45 | F62: -42 | G62: -66 | H62: -83 | I62: -80 | J62: 3
A63: 61 | B63: Train | C63: -59 | D63: -60 | E63: -61 | F63: -66 | G63: -66 | H63: -81 | I63: -85 | J63: 1
A64: 62 | B64: Train | C64: -64 | D64: -57 | E64: -60 | F64: -70 | G64: -69 | H64: -86 | I64: -83 | J64: 1
A65: 63 | B65: Train | C65: -36 | D65: -54 | E65: -56 | F65: -16 | G65: -61 | H65: -64 | I65: -79 | J65: 2
A66: 64 | B66: Train | C66: -63 | D66: -58 | E66: -54 | F66: -69 | G66: -43 | H66: -91 | I66: -92 | J66: 4
A67: 65 | B67: Train | C67: -49 | D67: -49 | E67: -53 | F67: -45 | G67: -58 | H67: -87 | I67: -89 | J67: 3
A68: 66 | B68: Train | C68: -51 | D68: -53 | E68: -55 | F68: -50 | G68: -67 | H68: -76 | I68: -88 | J68: 3
A69: 67 | B69: Train | C69: -42 | D69: -53 | E69: -49 | F69: -44 | G69: -74 | H69: -70 | I69: -65 | J69: 2
A70: 68 | B70: Train | C70: -66 | D70: -59 | E70: -45 | F70: -67 | G70: -52 | H70: -93 | I70: -92 | J70: 4
A71: 69 | B71: Train | C71: -49 | D71: -52 | E71: -48 | F71: -52 | G71: -62 | H71: -78 | I71: -75 | J71: 3
A72: 70 | B72: Train | C72: -57 | D72: -55 | E72: -48 | F72: -59 | G72: -51 | H72: -81 | I72: -86 | J72: 4
A73: 71 | B73: Train | C73: -36 | D73: -57 | E73: -60 | F73: -20 | G73: -71 | H73: -74 | I73: -74 | J73: 2
A74: 72 | B74: Train | C74: -36 | D74: -56 | E74: -56 | F74: -37 | G74: -59 | H74: -66 | I74: -75 | J74: 2
A75: 73 | B75: Train | C75: -39 | D75: -53 | E75: -51 | F75: -43 | G75: -70 | H75: -72 | I75: -70 | J75: 2
A76: 74 | B76: Train | C76: -65 | D76: -52 | E76: -46 | F76: -65 | G76: -49 | H76: -88 | I76: -87 | J76: 4
A77: 75 | B77: Train | C77: -47 | D77: -55 | E77: -52 | F77: -49 | G77: -59 | H77: -78 | I77: -71 | J77: 2
A78: 76 | B78: Train | C78: -64 | D78: -55 | E78: -60 | F78: -74 | G78: -66 | H78: -87 | I78: -87 | J78: 1
A79: 77 | B79: Train | C79: -41 | D79: -57 | E79: -51 | F79: -40 | G79: -66 | H79: -78 | I79: -71 | J79: 2
A80: 78 | B80: Train | C80: -69 | D80: -61 | E80: -62 | F80: -62 | G80: -75 | H80: -85 | I80: -84 | J80: 1
A81: 79 | B81: Train | C81: -51 | D81: -52 | E81: -50 | F81: -49 | G81: -60 | H81: -77 | I81: -76 | J81: 3
A82: 80 | B82: Train | C82: -46 | D82: -59 | E82: -54 | F82: -52 | G82: -67 | H82: -77 | I82: -83 | J82: 2
A83: 81 | B83: Train | C83: -62 | D83: -60 | E83: -55 | F83: -67 | G83: -43 | H83: -88 | I83: -92 | J83: 4
A84: 82 | B84: Train | C84: -58 | D84: -57 | E84: -49 | F84: -64 | G84: -49 | H84: -89 | I84: -81 | J84: 4
A85: 83 | B85: Train | C85: -50 | D85: -55 | E85: -57 | F85: -48 | G85: -80 | H85: -81 | I85: -76 | J85: 2
A86: 84 | B86: Train | C86: -17 | D86: -63 | E86: -60 | F86: -14 | G86: -72 | H86: -72 | I86: -77 | J86: 2
A87: 85 | B87: Train | C87: -60 | D87: -49 | E87: -48 | F87: -62 | G87: -48 | H87: -85 | I87: -93 | J87: 4
A88: 86 | B88: Train | C88: -37 | D88: -51 | E88: -54 | F88: -43 | G88: -60 | H88: -69 | I88: -70 | J88: 2
A89: 87 | B89: Train | C89: -57 | D89: -57 | E89: -50 | F89: -59 | G89: -54 | H89: -85 | I89: -81 | J89: 4
A90: 88 | B90: Train | C90: -50 | D90: -58 | E90: -57 | F90: -42 | G90: -76 | H90: -74 | I90: -80 | J90: 2
A91: 89 | B91: Train | C91: -56 | D91: -54 | E91: -43 | F91: -60 | G91: -50 | H91: -86 | I91: -85 | J91: 4
A92: 90 | B92: Train | C92: -45 | D92: -58 | E92: -59 | F92: -42 | G92: -66 | H92: -81 | I92: -75 | J92: 2
A93: 91 | B93: Train | C93: -62 | D93: -51 | E93: -58 | F93: -61 | G93: -63 | H93: -77 | I93: -80 | J93: 1
A94: 92 | B94: Train | C94: -19 | D94: -59 | E94: -67 | F94: -35 | G94: -65 | H94: -66 | I94: -74 | J94: 2
A95: 93 | B95: Train | C95: -45 | D95: -56 | E95: -60 | F95: -46 | G95: -81 | H95: -79 | I95: -75 | J95: 2
A96: 94 | B96: Train | C96: -58 | D96: -55 | E96: -58 | F96: -61 | G96: -64 | H96: -81 | I96: -84 | J96: 1
A97: 95 | B97: Train | C97: -47 | D97: -57 | E97: -57 | F97: -52 | G97: -62 | H97: -86 | I97: -84 | J97: 3
A98: 96 | B98: Train | C98: -61 | D98: -52 | E98: -43 | F98: -60 | G98: -47 | H98: -89 | I98: -85 | J98: 4
A99: 97 | B99: Train | C99: -37 | D99: -56 | E99: -58 | F99: -39 | G99: -66 | H99: -70 | I99: -72 | J99: 2
A100: 98 | B100: Train | C100: -49 | D100: -54 | E100: -53 | F100: -55 | G100: -67 | H100: -77 | I100: -86 | J100: 3
A101: 99 | B101: Train | C101: -61 | D101: -56 | E101: -52 | F101: -62 | G101: -52 | H101: -82 | I101: -87 | J101: 4
A102: 100 | B102: Train | C102: -48 | D102: -57 | E102: -51 | F102: -51 | G102: -60 | H102: -79 | I102: -80 | J102: 3
A103: 101 | B103: Train | C103: -63 | D103: -55 | E103: -63 | F103: -68 | G103: -77 | H103: -87 | I103: -89 | J103: 1
A104: 102 | B104: Train | C104: -49 | D104: -58 | E104: -50 | F104: -56 | G104: -64 | H104: -81 | I104: -81 | J104: 3
A105: 103 | B105: Train | C105: -53 | D105: -58 | E105: -51 | F105: -51 | G105: -62 | H105: -84 | I105: -85 | J105: 3
A106: 104 | B106: Train | C106: -43 | D106: -52 | E106: -55 | F106: -35 | G106: -61 | H106: -75 | I106: -76 | J106: 2
A107: 105 | B107: Train | C107: -51 | D107: -51 | E107: -52 | F107: -52 | G107: -63 | H107: -84 | I107: -78 | J107: 3
A108: 106 | B108: Train | C108: -64 | D108: -57 | E108: -63 | F108: -59 | G108: -68 | H108: -82 | I108: -83 | J108: 1
A109: 107 | B109: Train | C109: -36 | D109: -54 | E109: -54 | F109: -37 | G109: -66 | H109: -75 | I109: -71 | J109: 2
A110: 108 | B110: Train | C110: -43 | D110: -54 | E110: -55 | F110: -41 | G110: -68 | H110: -71 | I110: -74 | J110: 2
A111: 109 | B111: Train | C111: -66 | D111: -59 | E111: -70 | F111: -69 | G111: -76 | H111: -87 | I111: -89 | J111: 1
A112: 110 | B112: Train | C112: -46 | D112: -56 | E112: -54 | F112: -49 | G112: -63 | H112: -81 | I112: -82 | J112: 3
A113: 111 | B113: Train | C113: -49 | D113: -55 | E113: -48 | F113: -49 | G113: -62 | H113: -79 | I113: -84 | J113: 3
A114: 112 | B114: Train | C114: -55 | D114: -57 | E114: -49 | F114: -52 | G114: -53 | H114: -82 | I114: -86 | J114: 4
A115: 113 | B115: Train | C115: -48 | D115: -50 | E115: -54 | F115: -51 | G115: -59 | H115: -77 | I115: -75 | J115: 3
A116: 114 | B116: Train | C116: -55 | D116: -54 | E116: -43 | F116: -60 | G116: -51 | H116: -84 | I116: -88 | J116: 4
A117: 115 | B117: Train | C117: -37 | D117: -56 | E117: -55 | F117: -38 | G117: -71 | H117: -75 | I117: -78 | J117: 2
A118: 116 | B118: Train | C118: -51 | D118: -51 | E118: -51 | F118: -51 | G118: -65 | H118: -78 | I118: -88 | J118: 3
A119: 117 | B119: Train | C119: -59 | D119: -51 | E119: -56 | F119: -59 | G119: -51 | H119: -87 | I119: -86 | J119: 4
A120: 118 | B120: Train | C120: -36 | D120: -51 | E120: -67 | F120: -40 | G120: -63 | H120: -74 | I120: -68 | J120: 2
A121: 119 | B121: Train | C121: -63 | D121: -55 | E121: -63 | F121: -62 | G121: -68 | H121: -89 | I121: -85 | J121: 1
A122: 120 | B122: Train | C122: -66 | D122: -60 | E122: -65 | F122: -62 | G122: -70 | H122: -85 | I122: -83 | J122: 1
A123: 121 | B123: Train | C123: -57 | D123: -53 | E123: -51 | F123: -57 | G123: -48 | H123: -88 | I123: -85 | J123: 4
A124: 122 | B124: Train | C124: -49 | D124: -59 | E124: -56 | F124: -50 | G124: -63 | H124: -80 | I124: -91 | J124: 3
A125: 123 | B125: Train | C125: -58 | D125: -51 | E125: -59 | F125: -63 | G125: -69 | H125: -81 | I125: -80 | J125: 1
A126: 124 | B126: Train | C126: -63 | D126: -58 | E126: -62 | F126: -71 | G126: -74 | H126: -92 | I126: -94 | J126: 1
A127: 125 | B127: Train | C127: -43 | D127: -60 | E127: -55 | F127: -46 | G127: -71 | H127: -76 | I127: -79 | J127: 2
A128: 126 | B128: Train | C128: -63 | D128: -54 | E128: -61 | F128: -66 | G128: -73 | H128: -84 | I128: -88 | J128: 1
A129: 127 | B129: Train | C129: -62 | D129: -59 | E129: -53 | F129: -64 | G129: -44 | H129: -89 | I129: -98 | J129: 4
A130: 128 | B130: Train | C130: -58 | D130: -54 | E130: -59 | F130: -62 | G130: -68 | H130: -79 | I130: -87 | J130: 1
A131: 129 | B131: Train | C131: -39 | D131: -59 | E131: -57 | F131: -42 | G131: -75 | H131: -78 | I131: -74 | J131: 2
A132: 130 | B132: Train | C132: -56 | D132: -55 | E132: -54 | F132: -61 | G132: -46 | H132: -79 | I132: -79 | J132: 4
A133: 131 | B133: Train | C133: -63 | D133: -58 | E133: -66 | F133: -68 | G133: -75 | H133: -90 | I133: -93 | J133: 1
A134: 132 | B134: Train | C134: -52 | D134: -55 | E134: -56 | F134: -51 | G134: -69 | H134: -85 | I134: -85 | J134: 3
A135: 133 | B135: Train | C135: -66 | D135: -56 | E135: -59 | F135: -62 | G135: -67 | H135: -80 | I135: -78 | J135: 1
A136: 134 | B136: Train | C136: -66 | D136: -55 | E136: -64 | F136: -71 | G136: -75 | H136: -94 | I136: -83 | J136: 1
A137: 135 | B137: Train | C137: -40 | D137: -57 | E137: -47 | F137: -42 | G137: -69 | H137: -73 | I137: -70 | J137: 2
A138: 136 | B138: Train | C138: -55 | D138: -48 | E138: -49 | F138: -62 | G138: -55 | H138: -86 | I138: -91 | J138: 4
A139: 137 | B139: Train | C139: -60 | D139: -59 | E139: -58 | F139: -63 | G139: -72 | H139: -82 | I139: -79 | J139: 1
A140: 138 | B140: Train | C140: -51 | D140: -52 | E140: -48 | F140: -48 | G140: -62 | H140: -85 | I140: -78 | J140: 3
A141: 139 | B141: Train | C141: -50 | D141: -56 | E141: -54 | F141: -50 | G141: -71 | H141: -79 | I141: -77 | J141: 3
A142: 140 | B142: Train | C142: -65 | D142: -62 | E142: -62 | F142: -65 | G142: -77 | H142: -84 | I142: -85 | J142: 1
A143: 141 | B143: Train | C143: -64 | D143: -57 | E143: -62 | F143: -67 | G143: -68 | H143: -83 | I143: -84 | J143: 1
A144: 142 | B144: Train | C144: -56 | D144: -55 | E144: -44 | F144: -61 | G144: -51 | H144: -84 | I144: -87 | J144: 4
A145: 143 | B145: Train | C145: -58 | D145: -57 | E145: -66 | F145: -61 | G145: -68 | H145: -85 | I145: -83 | J145: 1
A146: 144 | B146: Train | C146: -62 | D146: -62 | E146: -55 | F146: -64 | G146: -42 | H146: -86 | I146: -92 | J146: 4
A147: 145 | B147: Train | C147: -59 | D147: -52 | E147: -56 | F147: -58 | G147: -55 | H147: -88 | I147: -87 | J147: 4
A148: 146 | B148: Train | C148: -63 | D148: -57 | E148: -55 | F148: -60 | G148: -50 | H148: -86 | I148: -92 | J148: 4
A149: 147 | B149: Train | C149: -64 | D149: -54 | E149: -52 | F149: -58 | G149: -52 | H149: -89 | I149: -88 | J149: 4
A150: 148 | B150: Train | C150: -61 | D150: -59 | E150: -54 | F150: -65 | G150: -66 | H150: -81 | I150: -89 | J150: 1
A151: 149 | B151: Train | C151: -52 | D151: -52 | E151: -53 | F151: -53 | G151: -56 | H151: -78 | I151: -79 | J151: 3
A152: 150 | B152: Train | C152: -54 | D152: -57 | E152: -53 | F152: -54 | G152: -62 | H152: -77 | I152: -75 | J152: 3
A153: 151 | B153: Train | C153: -52 | D153: -51 | E153: -49 | F153: -56 | G153: -65 | H153: -81 | I153: -83 | J153: 3
A154: 152 | B154: Train | C154: -66 | D154: -59 | E154: -47 | F154: -67 | G154: -51 | H154: -94 | I154: -88 | J154: 4
A155: 153 | B155: Train | C155: -26 | D155: -55 | E155: -55 | F155: -38 | G155: -71 | H155: -71 | I155: -70 | J155: 2
A156: 154 | B156: Train | C156: -61 | D156: -51 | E156: -49 | F156: -59 | G156: -56 | H156: -91 | I156: -89 | J156: 4
A157: 155 | B157: Train | C157: -37 | D157: -55 | E157: -55 | F157: -42 | G157: -69 | H157: -66 | I157: -69 | J157: 2
A158: 156 | B158: Train | C158: -49 | D158: -64 | E158: -58 | F158: -53 | G158: -70 | H158: -84 | I158: -80 | J158: 3
A159: 157 | B159: Train | C159: -64 | D159: -57 | E159: -56 | F159: -63 | G159: -68 | H159: -85 | I159: -81 | J159: 1
A160: 158 | B160: Train | C160: -47 | D160: -55 | E160: -58 | F160: -50 | G160: -60 | H160: -81 | I160: -84 | J160: 3
A161: 159 | B161: Train | C161: -44 | D161: -56 | E161: -54 | F161: -52 | G161: -63 | H161: -80 | I161: -79 | J161: 3
A162: 160 | B162: Train | C162: -53 | D162: -48 | E162: -52 | F162: -52 | G162: -59 | H162: -81 | I162: -82 | J162: 3
A163: 161 | B163: Train | C163: -66 | D163: -52 | E163: -48 | F163: -71 | G163: -55 | H163: -88 | I163: -87 | J163: 4
A164: 162 | B164: Train | C164: -39 | D164: -57 | E164: -50 | F164: -35 | G164: -63 | H164: -70 | I164: -79 | J164: 2
A165: 163 | B165: Train | C165: -36 | D165: -55 | E165: -65 | F165: -34 | G165: -66 | H165: -70 | I165: -74 | J165: 2
A166: 164 | B166: Train | C166: -19 | D166: -60 | E166: -54 | F166: -35 | G166: -69 | H166: -69 | I166: -78 | J166: 2
A167: 165 | B167: Train | C167: -34 | D167: -54 | E167: -61 | F167: -34 | G167: -70 | H167: -72 | I167: -73 | J167: 2
A168: 166 | B168: Train | C168: -39 | D168: -48 | E168: -51 | F168: -38 | G168: -63 | H168: -69 | I168: -89 | J168: 2
A169: 167 | B169: Train | C169: -62 | D169: -58 | E169: -52 | F169: -63 | G169: -50 | H169: -87 | I169: -88 | J169: 4
A170: 168 | B170: Train | C170: -37 | D170: -61 | E170: -54 | F170: -37 | G170: -66 | H170: -74 | I170: -75 | J170: 2
A171: 169 | B171: Train | C171: -61 | D171: -53 | E171: -48 | F171: -62 | G171: -52 | H171: -86 | I171: -85 | J171: 4
A172: 170 | B172: Train | C172: -65 | D172: -50 | E172: -51 | F172: -57 | G172: -70 | H172: -80 | I172: -79 | J172: 1
A173: 171 | B173: Train | C173: -58 | D173: -65 | E173: -47 | F173: -71 | G173: -51 | H173: -86 | I173: -83 | J173: 4
A174: 172 | B174: Train | C174: -61 | D174: -52 | E174: -58 | F174: -59 | G174: -70 | H174: -76 | I174: -79 | J174: 1
A175: 173 | B175: Train | C175: -39 | D175: -56 | E175: -55 | F175: -39 | G175: -68 | H175: -74 | I175: -73 | J175: 2
A176: 174 | B176: Train | C176: -48 | D176: -54 | E176: -50 | F176: -49 | G176: -61 | H176: -81 | I176: -84 | J176: 3
A177: 175 | B177: Train | C177: -57 | D177: -56 | E177: -49 | F177: -58 | G177: -50 | H177: -87 | I177: -85 | J177: 4
A178: 176 | B178: Train | C178: -61 | D178: -58 | E178: -60 | F178: -62 | G178: -70 | H178: -81 | I178: -85 | J178: 1
A179: 177 | B179: Train | C179: -49 | D179: -52 | E179: -58 | F179: -46 | G179: -57 | H179: -77 | I179: -77 | J179: 3
A180: 178 | B180: Train | C180: -48 | D180: -54 | E180: -53 | F180: -51 | G180: -61 | H180: -77 | I180: -80 | J180: 3
A181: 179 | B181: Train | C181: -52 | D181: -56 | E181: -51 | F181: -46 | G181: -63 | H181: -86 | I181: -82 | J181: 3
A182: 180 | B182: Train | C182: -59 | D182: -51 | E182: -55 | F182: -59 | G182: -53 | H182: -88 | I182: -88 | J182: 4
A183: 181 | B183: Train | C183: -58 | D183: -56 | E183: -56 | F183: -64 | G183: -50 | H183: -82 | I183: -87 | J183: 4
A184: 182 | B184: Train | C184: -47 | D184: -64 | E184: -57 | F184: -51 | G184: -64 | H184: -85 | I184: -78 | J184: 3
A185: 183 | B185: Train | C185: -66 | D185: -59 | E185: -65 | F185: -68 | G185: -75 | H185: -88 | I185: -84 | J185: 1
A186: 184 | B186: Train | C186: -49 | D186: -53 | E186: -50 | F186: -45 | G186: -64 | H186: -74 | I186: -85 | J186: 3
A187: 185 | B187: Train | C187: -59 | D187: -60 | E187: -57 | F187: -62 | G187: -67 | H187: -80 | I187: -84 | J187: 1
A188: 186 | B188: Train | C188: -50 | D188: -56 | E188: -57 | F188: -49 | G188: -68 | H188: -92 | I188: -80 | J188: 3
A189: 187 | B189: Train | C189: -40 | D189: -55 | E189: -49 | F189: -40 | G189: -61 | H189: -69 | I189: -66 | J189: 2
A190: 188 | B190: Train | C190: -51 | D190: -53 | E190: -52 | F190: -55 | G190: -67 | H190: -78 | I190: -88 | J190: 3
A191: 189 | B191: Train | C191: -45 | D191: -63 | E191: -57 | F191: -53 | G191: -57 | H191: -81 | I191: -84 | J191: 3
A192: 190 | B192: Train | C192: -63 | D192: -59 | E192: -65 | F192: -62 | G192: -65 | H192: -83 | I192: -80 | J192: 1
A193: 191 | B193: Train | C193: -51 | D193: -56 | E193: -51 | F193: -55 | G193: -62 | H193: -85 | I193: -83 | J193: 3
A194: 192 | B194: Train | C194: -36 | D194: -58 | E194: -54 | F194: -27 | G194: -67 | H194: -73 | I194: -78 | J194: 2
A195: 193 | B195: Train | C195: -52 | D195: -64 | E195: -54 | F195: -56 | G195: -70 | H195: -84 | I195: -78 | J195: 3
A196: 194 | B196: Train | C196: -42 | D196: -52 | E196: -56 | F196: -43 | G196: -64 | H196: -76 | I196: -74 | J196: 2
A197: 195 | B197: Train | C197: -61 | D197: -55 | E197: -59 | F197: -58 | G197: -66 | H197: -79 | I197: -78 | J197: 1
A198: 196 | B198: Train | C198: -37 | D198: -57 | E198: -51 | F198: -39 | G198: -70 | H198: -76 | I198: -72 | J198: 2
A199: 197 | B199: Train | C199: -37 | D199: -54 | E199: -55 | F199: -38 | G199: -72 | H199: -76 | I199: -79 | J199: 2
A200: 198 | B200: Train | C200: -40 | D200: -55 | E200: -53 | F200: -36 | G200: -60 | H200: -77 | I200: -77 | J200: 2
... 1802 more rows

Sheet history
A1: id | B1: urls
A2: 1 | B2: http://miau.my-x.hu/miau/239/konzisztencia_alapu_hibridizacio_v1.docx
A3: 2 | B3: https://miau.my-x.hu/miau/262/hipotezis_tervezes_phd.docx
A4: 3 | B4: https://miau.my-x.hu/miau/262/WiFi_experiment.xlsx
A5: 4 | B5: https://miau.my-x.hu/miau/262/wifi_y=1.xlsx
A6: 5 | B6: https://miau.my-x.hu/miau/263/Barta_Pitlik_final_no_remarks.docx
A7: 6 | B7: https://miau.my-x.hu/miau/263/wifi_plus.xlsx
A9: id2 | B9: abstracts
A10: 1 | B10: Abstract: A specific case of the model hybridization is: analyzing partial conclusion spaces and integration of partial results based on statistics, logic/rules, and models. The aggregation of partial result for partial problems can be made in quasi unlimited ways. The more complex is the term of consistence behind the aggregation of partial results, the more chance can be expected for the success of the hybridization. Keywords: similarity analysis, logic, rule
A11: 2 | B11: Abstract: The goal of the paper is to demonstrate how can be articulated and evaluated a potential hypothesis for a real PhD-degree. The process is simple: a whole thinking experiment is needed where it is possible to build a benchmark (objective competition between alternative solutions). Parallel, it is relevant to be capable of defining a scale for the Goodness of models. Keywords: hermeneutics, automation, none-system-answer, consistence-based context-free and/or context-depending modelling
A12: 5 | B12: Abstract The goal of the paper is to demonstrate how a potential hypothesis can be articulated and evaluated for a real PhD-degree. The process is simple: a whole thinking experiment is needed where it is possible to build a benchmark (objective competition between alternative solutions). Parallel, it is relevant to be capable of defining a scale for the goodness of models. The focus of the research of this article was to model and predict the location of indoor users, which, is the continuation of a previous research, attempted to consistently increase model accuracy based on the available data set. Keywords hermeneutics, automation, none-system-answer, consistence-based context-free and/or context-depending modelling

Sheet info
A1: Task | B1: A lot models should be developed for locating a mobile phone (device) in a building, if this device can be "seen" through routers (X1, …, X7) and we also know which router signs (which constellations of X1-2-3-4-5-6-7) belong to which room (Y=1,2,3,4) in the building. There are given 1400 constellation for learning and further 600 constellation for testing.
B2: 1 model = 1 micro-project
B3: System-modeling – Miau Wiki (my-x.hu)
B4: https://miau.my-x.hu/mediawiki/index.php/System-modeling#Log-analysis
A6: Sheets | B6: Contents
A7: case1 | B7: Expertise: how to derive similarities
A8: cases | B8: How to process all cases (incl. Macro)
A9: results | B9: Stored data
A10: accuracy | B10: How to calculate success levels for "learning" and testing
A12: Conclusions | B12: The expertise (estimation#1) seems to be quite simple and efficient.
B13: The expertise (estimation#2) is just a "guessing machine" compared to estimation#1.

Sheet case1
A1: Learning case#1 | B1: ='raw data'!C3 -> -58 | C1: ='raw data'!D3 -> -56 | D1: ='raw data'!E3 -> -52 | E1: ='raw data'!F3 -> -54 | F1: ='raw data'!G3 -> -52 | G1: ='raw data'!H3 -> -87 | H1: ='raw data'!I3 -> -84 | I1: Y | J1: ='raw data'!J3 -> 4 | S1: =VLOOKUP(MIN(S4:S7),S4:T7,2,0) -> 4 | V1: 1 | W1: =VLOOKUP(V1,W$4:$AD$7,W$8,0) -> 4 | X1: =VLOOKUP(W1,X$4:$AD$7,X$8,0) -> 3 | Y1: =VLOOKUP(X1,Y$4:$AD$7,Y$8,0) -> 2 | Z1: =VLOOKUP(Y1,Z$4:$AD$7,Z$8,0) -> 4 | AA1: =VLOOKUP(Z1,AA$4:$AD$7,AA$8,0) -> 1 | AB1: =VLOOKUP(AA1,AB$4:$AD$7,AB$8,0) -> 4 | AC1: =VLOOKUP(AB1,AC$4:$AD$7,AC$8,0) -> 2 | AF1: =VLOOKUP(1,AF4:AG7,2,0) -> 4
A3: Zeilenbeschriftungen | B3: Mittelwert von X1 | C3: Mittelwert von X2 | D3: Mittelwert von X3 | E3: Mittelwert von X4 | F3: Mittelwert von X5 | G3: Mittelwert von X6 | H3: Mittelwert von X7 | I3: MITTELWERT | J3: STD_ABW | L3: diff_x1 | M3: diff_x2 | N3: diff_x3 | O3: diff_x4 | P3: diff_x5 | Q3: diff_x6 | R3: diff_x7 | S3: total | T3: Room_id | V3: Room_id | W3: rank_x1 | X3: rank_x2 | Y3: rank_x3 | Z3: rank_x4 | AA3: rank_x5 | AB3: rank_x6 | AC3: rank_x7 | AD3: Room_id | AE3: Frequency | AF3: rangzahl | AG3: Room_id
A4: 1 | B4: -62.47521866 | C4: -56.37317784 | D4: -60.48688047 | E4: -64.17201166 | F4: -70.18075802 | G4: -82.80174927 | H4: -83.96793003 | I4: =AVERAGE(B4:H4) -> -68.63681799 | J4: =STDEV(B4:H4) -> 10.89946618 | L4: =ABS(B$1-B4) -> 4.475218659 | M4: =ABS(C$1-C4) -> 0.3731778426 | N4: =ABS(D$1-D4) -> 8.486880466 | O4: =ABS(E$1-E4) -> 10.17201166 | P4: =ABS(F$1-F4) -> 18.18075802 | Q4: =ABS(G$1-G4) -> 4.198250729 | R4: =ABS(H$1-H4) -> 0.03206997085 | S4: =SUM(L4:R4) -> 45.91836735 | T4: =V4 -> 1 | V4: =A4 -> 1 | W4: =RANK(L4,L$4:L$7,1) -> 2 | X4: =RANK(M4,M$4:M$7,1) -> 2 | Y4: =RANK(N4,N$4:N$7,1) -> 4 | Z4: =RANK(O4,O$4:O$7,1) -> 3 | AA4: =RANK(P4,P$4:P$7,1) -> 4 | AB4: =RANK(Q4,Q$4:Q$7,1) -> 2 | AC4: =RANK(R4,R$4:R$7,1) -> 1 | AD4: =V4 -> 1 | AE4: =SUMIF($W$1:$AC$1,V4,$W$1:$AC$1)/V4 -> 1 | AF4: =RANK(AE4,AE$4:AE$7,0) -> 3 | AG4: =AD4 -> 1
A5: 2 | B5: -36.63323782 | C5: -56.16045845 | D5: -55.94555874 | E5: -37.70773639 | F5: -67.5730659 | G5: -72.252149 | H5: -73.28939828 | I5: =AVERAGE(B5:H5) -> -57.08022923 | J5: =STDEV(B5:H5) -> 15.26723247 | L5: =ABS(B$1-B5) -> 21.36676218 | M5: 0.1604584527 | N5: 3.945558739 | O5: 16.29226361 | P5: 15.5730659 | Q5: 14.747851 | R5: 10.71060172 | S5: =SUM(L5:R5) -> 82.7965616 | T5: =V5 -> 2 | V5: =A5 -> 2 | W5: =RANK(L5,L$4:L$7,1) -> 4 | X5: =RANK(M5,M$4:M$7,1) -> 1 | Y5: =RANK(N5,N$4:N$7,1) -> 3 | Z5: =RANK(O5,O$4:O$7,1) -> 4 | AA5: =RANK(P5,P$4:P$7,1) -> 3 | AB5: =RANK(Q5,Q$4:Q$7,1) -> 4 | AC5: =RANK(R5,R$4:R$7,1) -> 4 | AD5: =V5 -> 2 | AE5: =SUMIF($W$1:$AC$1,V5,$W$1:$AC$1)/V5 -> 2 | AF5: =RANK(AE5,AE$4:AE$7,0) -> 2 | AG5: =AD5 -> 2
A6: 3 | B6: -49.74351585 | C6: -54.99135447 | D6: -52.89048991 | E6: -50.65994236 | F6: -63.32276657 | G6: -81.44380403 | H6: -82.38040346 | I6: -62.20461095 | J6: 14.17628072 | L6: 8.25648415 | M6: 1.008645533 | N6: 0.8904899135 | O6: 3.340057637 | P6: 11.32276657 | Q6: 5.556195965 | R6: 1.619596542 | S6: 31.99423631 | T6: 3 | V6: 3 | W6: =RANK(L6,L$4:L$7,1) -> 3 | X6: =RANK(M6,M$4:M$7,1) -> 4 | Y6: =RANK(N6,N$4:N$7,1) -> 1 | Z6: =RANK(O6,O$4:O$7,1) -> 1 | AA6: =RANK(P6,P$4:P$7,1) -> 2 | AB6: =RANK(Q6,Q$4:Q$7,1) -> 3 | AC6: =RANK(R6,R$4:R$7,1) -> 2 | AD6: 3 | AE6: 1 | AF6: 3 | AG6: 3
A7: 4 | B7: -60.21052632 | C7: -55.32963989 | D7: -50.73130194 | E7: -61.41274238 | F7: -49.46260388 | G7: -87.13296399 | H7: -87.01385042 | I7: -64.4705184 | J7: 16.05638509 | L7: 2.210526316 | M7: 0.6703601108 | N7: 1.268698061 | O7: 7.412742382 | P7: 2.537396122 | Q7: 0.1329639889 | R7: 3.013850416 | S7: 17.2465374 | T7: 4 | V7: 4 | W7: =RANK(L7,L$4:L$7,1) -> 1 | X7: =RANK(M7,M$4:M$7,1) -> 3 | Y7: =RANK(N7,N$4:N$7,1) -> 2 | Z7: =RANK(O7,O$4:O$7,1) -> 2 | AA7: =RANK(P7,P$4:P$7,1) -> 1 | AB7: =RANK(Q7,Q$4:Q$7,1) -> 1 | AC7: =RANK(R7,R$4:R$7,1) -> 3 | AD7: 4 | AE7: 3 | AF7: 1 | AG7: 4
A8: Gesamtergebnis | B8: -52.29357143 | C8: -55.70857143 | D8: -54.95642857 | E8: -53.51428571 | F8: -62.48857143 | G8: -80.95214286 | H8: -81.69785714 | V8: return | W8: 8 | X8: 7 | Y8: 6 | Z8: 5 | AA8: 4 | AB8: 3 | AC8: 2 | AE8: =SUM(AE4:AE7) -> 7
A10: Zeilenbeschriftungen | B10: Max. von X1 | C10: Max. von X2 | D10: Max. von X3 | E10: Max. von X4 | F10: Max. von X5 | G10: Max. von X6 | H10: Max. von X7 | I10: MAX | J10: STD_ABW
A11: 1 | B11: -55 | C11: -47 | D11: -50 | E11: -54 | F11: -60 | G11: -74 | H11: -74 | I11: =MAX(B11:H11) -> -47 | J11: =STDEV(B11:H11) -> 10.93051648
A12: 2 | B12: -10 | C12: -46 | D12: -46 | E12: -11 | F12: -56 | G12: -62 | H12: -63 | I12: =MAX(B12:H12) -> -10 | J12: =STDEV(B12:H12) -> 22.56102835
A13: 3 | B13: -43 | C13: -46 | D13: -45 | E13: -40 | F13: -54 | G13: -74 | H13: -73 | I13: -40 | J13: 14.26951462
A14: 4 | B14: -55 | C14: -48 | D14: -40 | E14: -52 | F14: -36 | G14: -76 | H14: -79 | I14: -36 | J14: 16.63759369
A15: Gesamtergebnis | B15: -10 | C15: -46 | D15: -40 | E15: -11 | F15: -36 | G15: -62 | H15: -63
A17: Zeilenbeschriftungen | B17: Min. von X1 | C17: Min. von X2 | D17: Min. von X3 | E17: Min. von X4 | F17: Min. von X5 | G17: Min. von X6 | H17: Min. von X7 | I17: MIN | J17: STD_ABW
A18: 1 | B18: -74 | C18: -64 | D18: -70 | E18: -76 | F18: -89 | G18: -97 | H18: -94 | I18: =MIN(B18:H18) -> -97 | J18: =STDEV(B18:H18) -> 12.72605127
A19: 2 | B19: -52 | C19: -74 | D19: -71 | E19: -53 | F19: -84 | G19: -89 | H19: -92 | I19: =MIN(B19:H19) -> -92 | J19: =STDEV(B19:H19) -> 16.23634958
A20: 3 | B20: -63 | C20: -68 | D20: -73 | E20: -63 | F20: -77 | G20: -92 | H20: -93 | I20: -93 | J20: 12.62084444
A21: 4 | B21: -71 | C21: -66 | D21: -60 | E21: -74 | F21: -62 | G21: -96 | H21: -98 | I21: -98 | J21: 15.60677509
A22: Gesamtergebnis | B22: -74 | C22: -74 | D22: -73 | E22: -76 | F22: -89 | G22: -97 | H22: -98
A24: Zeilenbeschriftungen | B24: STABW von X1 | C24: STABW von X2 | D24: STABW von X3 | E24: STABW von X4 | F24: STABW von X5 | G24: STABW von X6 | H24: STABW von X7 | I24: STD_ABW | J24: STD_ABW
A25: 1 | B25: 3.407739454 | C25: 3.13638953 | D25: 3.665745882 | E25: 3.661420215 | F25: 4.639895959 | G25: 3.707318095 | H25: 4.048191868 | I25: =MIN(B25:H25) -> 3.13638953 | J25: =STDEV(B25:H25) -> 0.4815288727
A26: 2 | B26: 8.815649362 | C26: 3.410183501 | D26: 4.15848586 | E26: 8.126547441 | F26: 5.315718077 | G26: 4.464357855 | H26: 4.71600685 | I26: =MIN(B26:H26) -> 3.410183501 | J26: =STDEV(B26:H26) -> 2.07138123
A27: 3 | B27: 2.744502077 | C27: 3.783510796 | D27: 3.273575504 | E27: 3.668280377 | F27: 3.601480967 | G27: 3.634951629 | H27: 4.287967687 | I27: 2.744502077 | J27: 0.4735055363
A28: 4 | B28: 3.027650354 | C28: 3.21445211 | D28: 4.182282832 | E28: 3.854110859 | F28: 3.532289607 | G28: 3.495877623 | H28: 3.520941615 | I28: 3.027650354 | J28: 0.383345398
A29: Gesamtergebnis | B29: 11.43569341 | C29: 3.438118027 | D29: 5.305286326 | E29: 11.62542979 | F29: 9.144531527 | G29: 6.66098246 | H29: 6.601881681
A31: Zeilenbeschriftungen | B31: Anzahl von X1 | C31: Anzahl von X2 | D31: Anzahl von X3 | E31: Anzahl von X4 | F31: Anzahl von X5 | G31: Anzahl von X6 | H31: Anzahl von X7 | I31: ANZAHL | J31: STD_ABW
A32: 1 | B32: 343 | C32: 343 | D32: 343 | E32: 343 | F32: 343 | G32: 343 | H32: 343 | I32: =MIN(B32:H32) -> 343 | J32: =STDEV(B32:H32) -> 0
A33: 2 | B33: 349 | C33: 349 | D33: 349 | E33: 349 | F33: 349 | G33: 349 | H33: 349 | I33: =MIN(B33:H33) -> 349 | J33: =STDEV(B33:H33) -> 0
A34: 3 | B34: 347 | C34: 347 | D34: 347 | E34: 347 | F34: 347 | G34: 347 | H34: 347 | I34: 347 | J34: 0
A35: 4 | B35: 361 | C35: 361 | D35: 361 | E35: 361 | F35: 361 | G35: 361 | H35: 361 | I35: 361 | J35: 0
A36: Gesamtergebnis | B36: 1400 | C36: 1400 | D36: 1400 | E36: 1400 | F36: 1400 | G36: 1400 | H36: 1400

Sheet cases
A1: 2000 | B1: =VLOOKUP($A1,'raw data'!$A$3:$J$2002,B2,0) -> -63 | C1: =VLOOKUP($A1,'raw data'!$A$3:$J$2002,C2,0) -> -60 | D1: =VLOOKUP($A1,'raw data'!$A$3:$J$2002,D2,0) -> -60 | E1: =VLOOKUP($A1,'raw data'!$A$3:$J$2002,E2,0) -> -67 | F1: =VLOOKUP($A1,'raw data'!$A$3:$J$2002,F2,0) -> -76 | G1: =VLOOKUP($A1,'raw data'!$A$3:$J$2002,G2,0) -> -85 | H1: =VLOOKUP($A1,'raw data'!$A$3:$J$2002,H2,0) -> -84 | I1: Y | J1: =VLOOKUP($A1,'raw data'!$A$3:$J$2002,J2,0) -> 1 | S1: =VLOOKUP(MIN(S4:S7),S4:T7,2,0) -> 1 | V1: 1 | W1: =VLOOKUP(V1,W$4:$AD$7,W$8,0) -> 1 | X1: =VLOOKUP(W1,X$4:$AD$7,X$8,0) -> 1 | Y1: =VLOOKUP(X1,Y$4:$AD$7,Y$8,0) -> 1 | Z1: =VLOOKUP(Y1,Z$4:$AD$7,Z$8,0) -> 1 | AA1: =VLOOKUP(Z1,AA$4:$AD$7,AA$8,0) -> 1 | AB1: =VLOOKUP(AA1,AB$4:$AD$7,AB$8,0) -> 4 | AC1: =VLOOKUP(AB1,AC$4:$AD$7,AC$8,0) -> 2 | AF1: =VLOOKUP(1,AF4:AG7,2,0) -> 1
A2: return | B2: 3 | C2: 4 | D2: 5 | E2: 6 | F2: 7 | G2: 8 | H2: 9 | J2: 10
A3: Zeilenbeschriftungen | B3: Mittelwert von X1 | C3: Mittelwert von X2 | D3: Mittelwert von X3 | E3: Mittelwert von X4 | F3: Mittelwert von X5 | G3: Mittelwert von X6 | H3: Mittelwert von X7 | I3: MITTELWERT | J3: STD_ABW | L3: diff_x1 | M3: diff_x2 | N3: diff_x3 | O3: diff_x4 | P3: diff_x5 | Q3: diff_x6 | R3: diff_x7 | S3: total | T3: Room_id | V3: Room_id | W3: rank_x1 | X3: rank_x2 | Y3: rank_x3 | Z3: rank_x4 | AA3: rank_x5 | AB3: rank_x6 | AC3: rank_x7 | AD3: Room_id | AE3: Frequency | AF3: rangzahl | AG3: Room_id
A4: 1 | B4: -62.47521866 | C4: -56.37317784 | D4: -60.48688047 | E4: -64.17201166 | F4: -70.18075802 | G4: -82.80174927 | H4: -83.96793003 | I4: =AVERAGE(B4:H4) -> -68.63681799 | J4: =STDEV(B4:H4) -> 10.89946618 | L4: =ABS(B$1-B4) -> 0.5247813411 | M4: =ABS(C$1-C4) -> 3.626822157 | N4: 0.4868804665 | O4: 2.827988338 | P4: 5.819241983 | Q4: 2.198250729 | R4: 0.03206997085 | S4: =SUM(L4:R4) -> 15.51603499 | T4: =V4 -> 1 | V4: =A4 -> 1 | W4: =RANK(L4,L$4:L$7,1) -> 1 | X4: =RANK(M4,M$4:M$7,1) -> 1 | Y4: =RANK(N4,N$4:N$7,1) -> 1 | Z4: =RANK(O4,O$4:O$7,1) -> 1 | AA4: =RANK(P4,P$4:P$7,1) -> 1 | AB4: =RANK(Q4,Q$4:Q$7,1) -> 2 | AC4: =RANK(R4,R$4:R$7,1) -> 1 | AD4: =V4 -> 1 | AE4: =SUMIF($W$1:$AC$1,V4,$W$1:$AC$1)/V4 -> 5 | AF4: =RANK(AE4,AE$4:AE$7,0) -> 1 | AG4: =AD4 -> 1
A5: 2 | B5: -36.63323782 | C5: -56.16045845 | D5: -55.94555874 | E5: -37.70773639 | F5: -67.5730659 | G5: -72.252149 | H5: -73.28939828 | I5: =AVERAGE(B5:H5) -> -57.08022923 | J5: =STDEV(B5:H5) -> 15.26723247 | L5: =ABS(B$1-B5) -> 26.36676218 | M5: 3.839541547 | N5: 4.054441261 | O5: 29.29226361 | P5: 8.426934097 | Q5: 12.747851 | R5: 10.71060172 | S5: =SUM(L5:R5) -> 95.43839542 | T5: =V5 -> 2 | V5: =A5 -> 2 | W5: =RANK(L5,L$4:L$7,1) -> 4 | X5: =RANK(M5,M$4:M$7,1) -> 2 | Y5: =RANK(N5,N$4:N$7,1) -> 2 | Z5: =RANK(O5,O$4:O$7,1) -> 4 | AA5: =RANK(P5,P$4:P$7,1) -> 2 | AB5: =RANK(Q5,Q$4:Q$7,1) -> 4 | AC5: =RANK(R5,R$4:R$7,1) -> 4 | AD5: =V5 -> 2 | AE5: =SUMIF($W$1:$AC$1,V5,$W$1:$AC$1)/V5 -> 1 | AF5: =RANK(AE5,AE$4:AE$7,0) -> 2 | AG5: =AD5 -> 2
A6: 3 | B6: -49.74351585 | C6: -54.99135447 | D6: -52.89048991 | E6: -50.65994236 | F6: -63.32276657 | G6: -81.44380403 | H6: -82.38040346 | I6: -62.20461095 | J6: 14.17628072 | L6: 13.25648415 | M6: 5.008645533 | N6: 7.109510086 | O6: 16.34005764 | P6: 12.67723343 | Q6: 3.556195965 | R6: 1.619596542 | S6: 59.56772334 | T6: 3 | V6: 3 | W6: =RANK(L6,L$4:L$7,1) -> 3 | X6: =RANK(M6,M$4:M$7,1) -> 4 | Y6: =RANK(N6,N$4:N$7,1) -> 3 | Z6: =RANK(O6,O$4:O$7,1) -> 3 | AA6: =RANK(P6,P$4:P$7,1) -> 3 | AB6: =RANK(Q6,Q$4:Q$7,1) -> 3 | AC6: =RANK(R6,R$4:R$7,1) -> 2 | AD6: 3 | AE6: 0 | AF6: 4 | AG6: 3
A7: 4 | B7: -60.21052632 | C7: -55.32963989 | D7: -50.73130194 | E7: -61.41274238 | F7: -49.46260388 | G7: -87.13296399 | H7: -87.01385042 | I7: -64.4705184 | J7: 16.05638509 | L7: 2.789473684 | M7: 4.670360111 | N7: 9.268698061 | O7: 5.587257618 | P7: 26.53739612 | Q7: 2.132963989 | R7: 3.013850416 | S7: 54 | T7: 4 | V7: 4 | W7: =RANK(L7,L$4:L$7,1) -> 2 | X7: =RANK(M7,M$4:M$7,1) -> 3 | Y7: =RANK(N7,N$4:N$7,1) -> 4 | Z7: =RANK(O7,O$4:O$7,1) -> 2 | AA7: =RANK(P7,P$4:P$7,1) -> 4 | AB7: =RANK(Q7,Q$4:Q$7,1) -> 1 | AC7: =RANK(R7,R$4:R$7,1) -> 3 | AD7: 4 | AE7: 1 | AF7: 2 | AG7: 4
A8: Gesamtergebnis | B8: -52.29357143 | C8: -55.70857143 | D8: -54.95642857 | E8: -53.51428571 | F8: -62.48857143 | G8: -80.95214286 | H8: -81.69785714 | V8: return | W8: 8 | X8: 7 | Y8: 6 | Z8: 5 | AA8: 4 | AB8: 3 | AC8: 2 | AE8: =SUM(AE4:AE7) -> 7
A10: Zeilenbeschriftungen | B10: Max. von X1 | C10: Max. von X2 | D10: Max. von X3 | E10: Max. von X4 | F10: Max. von X5 | G10: Max. von X6 | H10: Max. von X7 | I10: MAX | J10: STD_ABW
A11: 1 | B11: -55 | C11: -47 | D11: -50 | E11: -54 | F11: -60 | G11: -74 | H11: -74 | I11: =MAX(B11:H11) -> -47 | J11: =STDEV(B11:H11) -> 10.93051648
A12: 2 | B12: -10 | C12: -46 | D12: -46 | E12: -11 | F12: -56 | G12: -62 | H12: -63 | I12: =MAX(B12:H12) -> -10 | J12: =STDEV(B12:H12) -> 22.56102835
A13: 3 | B13: -43 | C13: -46 | D13: -45 | E13: -40 | F13: -54 | G13: -74 | H13: -73 | I13: -40 | J13: 14.26951462
A14: 4 | B14: -55 | C14: -48 | D14: -40 | E14: -52 | F14: -36 | G14: -76 | H14: -79 | I14: -36 | J14: 16.63759369
A15: Gesamtergebnis | B15: -10 | C15: -46 | D15: -40 | E15: -11 | F15: -36 | G15: -62 | H15: -63
A17: Zeilenbeschriftungen | B17: Min. von X1 | C17: Min. von X2 | D17: Min. von X3 | E17: Min. von X4 | F17: Min. von X5 | G17: Min. von X6 | H17: Min. von X7 | I17: MIN | J17: STD_ABW
A18: 1 | B18: -74 | C18: -64 | D18: -70 | E18: -76 | F18: -89 | G18: -97 | H18: -94 | I18: =MIN(B18:H18) -> -97 | J18: =STDEV(B18:H18) -> 12.72605127
A19: 2 | B19: -52 | C19: -74 | D19: -71 | E19: -53 | F19: -84 | G19: -89 | H19: -92 | I19: =MIN(B19:H19) -> -92 | J19: =STDEV(B19:H19) -> 16.23634958
A20: 3 | B20: -63 | C20: -68 | D20: -73 | E20: -63 | F20: -77 | G20: -92 | H20: -93 | I20: -93 | J20: 12.62084444
A21: 4 | B21: -71 | C21: -66 | D21: -60 | E21: -74 | F21: -62 | G21: -96 | H21: -98 | I21: -98 | J21: 15.60677509
A22: Gesamtergebnis | B22: -74 | C22: -74 | D22: -73 | E22: -76 | F22: -89 | G22: -97 | H22: -98
A24: Zeilenbeschriftungen | B24: STABW von X1 | C24: STABW von X2 | D24: STABW von X3 | E24: STABW von X4 | F24: STABW von X5 | G24: STABW von X6 | H24: STABW von X7 | I24: STD_ABW | J24: STD_ABW
A25: 1 | B25: 3.407739454 | C25: 3.13638953 | D25: 3.665745882 | E25: 3.661420215 | F25: 4.639895959 | G25: 3.707318095 | H25: 4.048191868 | I25: =MIN(B25:H25) -> 3.13638953 | J25: =STDEV(B25:H25) -> 0.4815288727
A26: 2 | B26: 8.815649362 | C26: 3.410183501 | D26: 4.15848586 | E26: 8.126547441 | F26: 5.315718077 | G26: 4.464357855 | H26: 4.71600685 | I26: =MIN(B26:H26) -> 3.410183501 | J26: =STDEV(B26:H26) -> 2.07138123
A27: 3 | B27: 2.744502077 | C27: 3.783510796 | D27: 3.273575504 | E27: 3.668280377 | F27: 3.601480967 | G27: 3.634951629 | H27: 4.287967687 | I27: 2.744502077 | J27: 0.4735055363
A28: 4 | B28: 3.027650354 | C28: 3.21445211 | D28: 4.182282832 | E28: 3.854110859 | F28: 3.532289607 | G28: 3.495877623 | H28: 3.520941615 | I28: 3.027650354 | J28: 0.383345398
A29: Gesamtergebnis | B29: 11.43569341 | C29: 3.438118027 | D29: 5.305286326 | E29: 11.62542979 | F29: 9.144531527 | G29: 6.66098246 | H29: 6.601881681
A31: Zeilenbeschriftungen | B31: Anzahl von X1 | C31: Anzahl von X2 | D31: Anzahl von X3 | E31: Anzahl von X4 | F31: Anzahl von X5 | G31: Anzahl von X6 | H31: Anzahl von X7 | I31: ANZAHL | J31: STD_ABW
A32: 1 | B32: 343 | C32: 343 | D32: 343 | E32: 343 | F32: 343 | G32: 343 | H32: 343 | I32: =MIN(B32:H32) -> 343 | J32: =STDEV(B32:H32) -> 0
A33: 2 | B33: 349 | C33: 349 | D33: 349 | E33: 349 | F33: 349 | G33: 349 | H33: 349 | I33: =MIN(B33:H33) -> 349 | J33: =STDEV(B33:H33) -> 0
A34: 3 | B34: 347 | C34: 347 | D34: 347 | E34: 347 | F34: 347 | G34: 347 | H34: 347 | I34: 347 | J34: 0
A35: 4 | B35: 361 | C35: 361 | D35: 361 | E35: 361 | F35: 361 | G35: 361 | H35: 361 | I35: 361 | J35: 0
A36: Gesamtergebnis | B36: 1400 | C36: 1400 | D36: 1400 | E36: 1400 | F36: 1400 | G36: 1400 | H36: 1400

Sheet results
A1: ID | B1: Train/Test | C1: ='raw data'!J2 -> Y | D1: Estimation1 | E1: Estimation2 | F1: diff1 | G1: diff2
A2: 1 | B2: Train | C2: ='raw data'!J3 -> 4 | D2: =case1!S1 -> 4 | E2: =case1!AF1 -> 4 | F2: =IF(C2=D2,0,1) -> 0 | G2: =IF(C2=E2,0,1) -> 0
A3: 2 | B3: Train | C3: ='raw data'!J4 -> 4 | D3: 4 | E3: 4 | F3: =IF(C3=D3,0,1) -> 0 | G3: =IF(C3=E3,0,1) -> 0
A4: 3 | B4: Train | C4: ='raw data'!J5 -> 3 | D4: 3 | E4: 2 | F4: 0 | G4: 1
A5: 4 | B5: Train | C5: ='raw data'!J6 -> 1 | D5: 1 | E5: 2 | F5: 0 | G5: 1
A6: 5 | B6: Train | C6: ='raw data'!J7 -> 2 | D6: 2 | E6: 1 | F6: 0 | G6: 1
A7: 6 | B7: Train | C7: ='raw data'!J8 -> 1 | D7: 1 | E7: 1 | F7: 0 | G7: 0
A8: 7 | B8: Train | C8: ='raw data'!J9 -> 2 | D8: 2 | E8: 4 | F8: 0 | G8: 1
A9: 8 | B9: Train | C9: ='raw data'!J10 -> 1 | D9: 1 | E9: 1 | F9: 0 | G9: 0
A10: 9 | B10: Train | C10: ='raw data'!J11 -> 2 | D10: 2 | E10: 2 | F10: 0 | G10: 0
A11: 10 | B11: Train | C11: ='raw data'!J12 -> 3 | D11: 3 | E11: 1 | F11: 0 | G11: 1
A12: 11 | B12: Train | C12: ='raw data'!J13 -> 4 | D12: 4 | E12: 4 | F12: 0 | G12: 0
A13: 12 | B13: Train | C13: ='raw data'!J14 -> 4 | D13: 4 | E13: 1 | F13: 0 | G13: 1
A14: 13 | B14: Train | C14: ='raw data'!J15 -> 3 | D14: 3 | E14: 1 | F14: 0 | G14: 1
A15: 14 | B15: Train | C15: ='raw data'!J16 -> 2 | D15: 2 | E15: 1 | F15: 0 | G15: 1
A16: 15 | B16: Train | C16: ='raw data'!J17 -> 3 | D16: 3 | E16: 3 | F16: 0 | G16: 0
A17: 16 | B17: Train | C17: ='raw data'!J18 -> 4 | D17: 4 | E17: 1 | F17: 0 | G17: 1
A18: 17 | B18: Train | C18: ='raw data'!J19 -> 4 | D18: 4 | E18: 3 | F18: 0 | G18: 1
A19: 18 | B19: Train | C19: ='raw data'!J20 -> 1 | D19: 1 | E19: 1 | F19: 0 | G19: 0
A20: 19 | B20: Train | C20: ='raw data'!J21 -> 2 | D20: 2 | E20: 2 | F20: 0 | G20: 0
A21: 20 | B21: Train | C21: ='raw data'!J22 -> 1 | D21: 3 | E21: 3 | F21: 1 | G21: 1
A22: 21 | B22: Train | C22: ='raw data'!J23 -> 2 | D22: 3 | E22: 1 | F22: 1 | G22: 1
A23: 22 | B23: Train | C23: ='raw data'!J24 -> 2 | D23: 2 | E23: 1 | F23: 0 | G23: 1
A24: 23 | B24: Train | C24: ='raw data'!J25 -> 3 | D24: 3 | E24: 1 | F24: 0 | G24: 1
A25: 24 | B25: Train | C25: ='raw data'!J26 -> 2 | D25: 2 | E25: 4 | F25: 0 | G25: 1
A26: 25 | B26: Train | C26: ='raw data'!J27 -> 2 | D26: 2 | E26: 2 | F26: 0 | G26: 0
A27: 26 | B27: Train | C27: ='raw data'!J28 -> 1 | D27: 1 | E27: 1 | F27: 0 | G27: 0
A28: 27 | B28: Train | C28: ='raw data'!J29 -> 2 | D28: 2 | E28: 2 | F28: 0 | G28: 0
A29: 28 | B29: Train | C29: ='raw data'!J30 -> 2 | D29: 2 | E29: 2 | F29: 0 | G29: 0
A30: 29 | B30: Train | C30: ='raw data'!J31 -> 2 | D30: 2 | E30: 1 | F30: 0 | G30: 1
A31: 30 | B31: Train | C31: ='raw data'!J32 -> 4 | D31: 4 | E31: 1 | F31: 0 | G31: 1
A32: 31 | B32: Train | C32: ='raw data'!J33 -> 1 | D32: 1 | E32: 3 | F32: 0 | G32: 1
A33: 32 | B33: Train | C33: ='raw data'!J34 -> 4 | D33: 4 | E33: 3 | F33: 0 | G33: 1
A34: 33 | B34: Train | C34: ='raw data'!J35 -> 3 | D34: 3 | E34: 2 | F34: 0 | G34: 1
A35: 34 | B35: Train | C35: ='raw data'!J36 -> 1 | D35: 1 | E35: 2 | F35: 0 | G35: 1
A36: 35 | B36: Train | C36: ='raw data'!J37 -> 1 | D36: 1 | E36: 1 | F36: 0 | G36: 0
A37: 36 | B37: Train | C37: ='raw data'!J38 -> 4 | D37: 4 | E37: 1 | F37: 0 | G37: 1
A38: 37 | B38: Train | C38: ='raw data'!J39 -> 4 | D38: 4 | E38: 4 | F38: 0 | G38: 0
A39: 38 | B39: Train | C39: ='raw data'!J40 -> 1 | D39: 1 | E39: 2 | F39: 0 | G39: 1
A40: 39 | B40: Train | C40: ='raw data'!J41 -> 4 | D40: 4 | E40: 3 | F40: 0 | G40: 1
A41: 40 | B41: Train | C41: ='raw data'!J42 -> 3 | D41: 3 | E41: 3 | F41: 0 | G41: 0
A42: 41 | B42: Train | C42: ='raw data'!J43 -> 1 | D42: 1 | E42: 1 | F42: 0 | G42: 0
A43: 42 | B43: Train | C43: ='raw data'!J44 -> 2 | D43: 2 | E43: 1 | F43: 0 | G43: 1
A44: 43 | B44: Train | C44: ='raw data'!J45 -> 3 | D44: 3 | E44: 3 | F44: 0 | G44: 0
A45: 44 | B45: Train | C45: ='raw data'!J46 -> 4 | D45: 4 | E45: 1 | F45: 0 | G45: 1
A46: 45 | B46: Train | C46: ='raw data'!J47 -> 3 | D46: 3 | E46: 3 | F46: 0 | G46: 0
A47: 46 | B47: Train | C47: ='raw data'!J48 -> 4 | D47: 4 | E47: 3 | F47: 0 | G47: 1
A48: 47 | B48: Train | C48: ='raw data'!J49 -> 1 | D48: 1 | E48: 1 | F48: 0 | G48: 0
A49: 48 | B49: Train | C49: ='raw data'!J50 -> 2 | D49: 2 | E49: 2 | F49: 0 | G49: 0
A50: 49 | B50: Train | C50: ='raw data'!J51 -> 4 | D50: 4 | E50: 4 | F50: 0 | G50: 0
A51: 50 | B51: Train | C51: ='raw data'!J52 -> 3 | D51: 3 | E51: 3 | F51: 0 | G51: 0
A52: 51 | B52: Train | C52: ='raw data'!J53 -> 4 | D52: 4 | E52: 1 | F52: 0 | G52: 1
A53: 52 | B53: Train | C53: ='raw data'!J54 -> 2 | D53: 2 | E53: 2 | F53: 0 | G53: 0
A54: 53 | B54: Train | C54: ='raw data'!J55 -> 1 | D54: 1 | E54: 2 | F54: 0 | G54: 1
A55: 54 | B55: Train | C55: ='raw data'!J56 -> 4 | D55: 4 | E55: 3 | F55: 0 | G55: 1
A56: 55 | B56: Train | C56: ='raw data'!J57 -> 1 | D56: 1 | E56: 1 | F56: 0 | G56: 0
A57: 56 | B57: Train | C57: ='raw data'!J58 -> 1 | D57: 1 | E57: 1 | F57: 0 | G57: 0
A58: 57 | B58: Train | C58: ='raw data'!J59 -> 4 | D58: 4 | E58: 4 | F58: 0 | G58: 0
A59: 58 | B59: Train | C59: ='raw data'!J60 -> 1 | D59: 1 | E59: 1 | F59: 0 | G59: 0
A60: 59 | B60: Train | C60: ='raw data'!J61 -> 3 | D60: 3 | E60: 3 | F60: 0 | G60: 0
A61: 60 | B61: Train | C61: ='raw data'!J62 -> 3 | D61: 3 | E61: 4 | F61: 0 | G61: 1
A62: 61 | B62: Train | C62: ='raw data'!J63 -> 1 | D62: 1 | E62: 3 | F62: 0 | G62: 1
A63: 62 | B63: Train | C63: ='raw data'!J64 -> 1 | D63: 1 | E63: 1 | F63: 0 | G63: 0
A64: 63 | B64: Train | C64: ='raw data'!J65 -> 2 | D64: 2 | E64: 1 | F64: 0 | G64: 1
A65: 64 | B65: Train | C65: ='raw data'!J66 -> 4 | D65: 4 | E65: 1 | F65: 0 | G65: 1
A66: 65 | B66: Train | C66: ='raw data'!J67 -> 3 | D66: 3 | E66: 3 | F66: 0 | G66: 0
A67: 66 | B67: Train | C67: ='raw data'!J68 -> 3 | D67: 3 | E67: 2 | F67: =IF(C67=D67,0,1) -> 0 | G67: =IF(C67=E67,0,1) -> 1
A68: 67 | B68: Train | C68: ='raw data'!J69 -> 2 | D68: 2 | E68: 2 | F68: 0 | G68: 0
A69: 68 | B69: Train | C69: ='raw data'!J70 -> 4 | D69: 4 | E69: 3 | F69: 0 | G69: 1
A70: 69 | B70: Train | C70: ='raw data'!J71 -> 3 | D70: 3 | E70: 3 | F70: 0 | G70: 0
A71: 70 | B71: Train | C71: ='raw data'!J72 -> 4 | D71: 4 | E71: 4 | F71: 0 | G71: 0
A72: 71 | B72: Train | C72: ='raw data'!J73 -> 2 | D72: 2 | E72: 2 | F72: 0 | G72: 0
A73: 72 | B73: Train | C73: ='raw data'!J74 -> 2 | D73: 2 | E73: 4 | F73: 0 | G73: 1
A74: 73 | B74: Train | C74: ='raw data'!J75 -> 2 | D74: 2 | E74: 2 | F74: 0 | G74: 0
A75: 74 | B75: Train | C75: ='raw data'!J76 -> 4 | D75: 4 | E75: 1 | F75: 0 | G75: 1
A76: 75 | B76: Train | C76: ='raw data'!J77 -> 2 | D76: 3 | E76: 3 | F76: 1 | G76: 1
A77: 76 | B77: Train | C77: ='raw data'!J78 -> 1 | D77: 1 | E77: 3 | F77: 0 | G77: 1
A78: 77 | B78: Train | C78: ='raw data'!J79 -> 2 | D78: 2 | E78: 4 | F78: 0 | G78: 1
A79: 78 | B79: Train | C79: ='raw data'!J80 -> 1 | D79: 1 | E79: 1 | F79: 0 | G79: 0
A80: 79 | B80: Train | C80: ='raw data'!J81 -> 3 | D80: 3 | E80: 4 | F80: 0 | G80: 1
A81: 80 | B81: Train | C81: ='raw data'!J82 -> 2 | D81: 3 | E81: 3 | F81: 1 | G81: 1
A82: 81 | B82: Train | C82: ='raw data'!J83 -> 4 | D82: 4 | E82: 1 | F82: 0 | G82: 1
A83: 82 | B83: Train | C83: ='raw data'!J84 -> 4 | D83: 4 | E83: 4 | F83: 0 | G83: 0
A84: 83 | B84: Train | C84: ='raw data'!J85 -> 2 | D84: 3 | E84: 3 | F84: 1 | G84: 1
A85: 84 | B85: Train | C85: ='raw data'!J86 -> 2 | D85: 2 | E85: 2 | F85: 0 | G85: 0
A86: 85 | B86: Train | C86: ='raw data'!J87 -> 4 | D86: 4 | E86: 3 | F86: 0 | G86: 1
A87: 86 | B87: Train | C87: ='raw data'!J88 -> 2 | D87: 2 | E87: 2 | F87: 0 | G87: 0
A88: 87 | B88: Train | C88: ='raw data'!J89 -> 4 | D88: 4 | E88: 1 | F88: 0 | G88: 1
A89: 88 | B89: Train | C89: ='raw data'!J90 -> 2 | D89: 2 | E89: 1 | F89: 0 | G89: 1
A90: 89 | B90: Train | C90: ='raw data'!J91 -> 4 | D90: 4 | E90: 3 | F90: 0 | G90: 1
A91: 90 | B91: Train | C91: ='raw data'!J92 -> 2 | D91: 2 | E91: 1 | F91: 0 | G91: 1
A92: 91 | B92: Train | C92: ='raw data'!J93 -> 1 | D92: 1 | E92: 3 | F92: 0 | G92: 1
A93: 92 | B93: Train | C93: ='raw data'!J94 -> 2 | D93: 2 | E93: 2 | F93: 0 | G93: 0
A94: 93 | B94: Train | C94: ='raw data'!J95 -> 2 | D94: 2 | E94: 1 | F94: 0 | G94: 1
A95: 94 | B95: Train | C95: ='raw data'!J96 -> 1 | D95: 1 | E95: 1 | F95: 0 | G95: 0
A96: 95 | B96: Train | C96: ='raw data'!J97 -> 3 | D96: 3 | E96: 1 | F96: 0 | G96: 1
A97: 96 | B97: Train | C97: ='raw data'!J98 -> 4 | D97: 4 | E97: 3 | F97: 0 | G97: 1
A98: 97 | B98: Train | C98: ='raw data'!J99 -> 2 | D98: 2 | E98: 2 | F98: 0 | G98: 0
A99: 98 | B99: Train | C99: ='raw data'!J100 -> 3 | D99: 3 | E99: 3 | F99: 0 | G99: 0
A100: 99 | B100: Train | C100: ='raw data'!J101 -> 4 | D100: 4 | E100: 1 | F100: 0 | G100: 1
A101: 100 | B101: Train | C101: ='raw data'!J102 -> 3 | D101: 3 | E101: 3 | F101: 0 | G101: 0
A102: 101 | B102: Train | C102: ='raw data'!J103 -> 1 | D102: 1 | E102: 3 | F102: 0 | G102: 1
A103: 102 | B103: Train | C103: ='raw data'!J104 -> 3 | D103: 3 | E103: 3 | F103: 0 | G103: 0
A104: 103 | B104: Train | C104: ='raw data'!J105 -> 3 | D104: 3 | E104: 1 | F104: 0 | G104: 1
A105: 104 | B105: Train | C105: ='raw data'!J106 -> 2 | D105: 2 | E105: 2 | F105: 0 | G105: 0
A106: 105 | B106: Train | C106: ='raw data'!J107 -> 3 | D106: 3 | E106: 2 | F106: 0 | G106: 1
A107: 106 | B107: Train | C107: ='raw data'!J108 -> 1 | D107: 1 | E107: 1 | F107: 0 | G107: 0
A108: 107 | B108: Train | C108: ='raw data'!J109 -> 2 | D108: 2 | E108: 2 | F108: 0 | G108: 0
A109: 108 | B109: Train | C109: ='raw data'!J110 -> 2 | D109: 2 | E109: 2 | F109: 0 | G109: 0
A110: 109 | B110: Train | C110: ='raw data'!J111 -> 1 | D110: 1 | E110: 1 | F110: 0 | G110: 0
A111: 110 | B111: Train | C111: ='raw data'!J112 -> 3 | D111: 3 | E111: 3 | F111: 0 | G111: 0
A112: 111 | B112: Train | C112: ='raw data'!J113 -> 3 | D112: 3 | E112: 4 | F112: 0 | G112: 1
A113: 112 | B113: Train | C113: ='raw data'!J114 -> 4 | D113: 3 | E113: 3 | F113: 1 | G113: 1
A114: 113 | B114: Train | C114: ='raw data'!J115 -> 3 | D114: 3 | E114: 1 | F114: 0 | G114: 1
A115: 114 | B115: Train | C115: ='raw data'!J116 -> 4 | D115: 4 | E115: 4 | F115: 0 | G115: 0
A116: 115 | B116: Train | C116: ='raw data'!J117 -> 2 | D116: 2 | E116: 3 | F116: 0 | G116: 1
A117: 116 | B117: Train | C117: ='raw data'!J118 -> 3 | D117: 3 | E117: 3 | F117: 0 | G117: 0
A118: 117 | B118: Train | C118: ='raw data'!J119 -> 4 | D118: 4 | E118: 1 | F118: 0 | G118: 1
A119: 118 | B119: Train | C119: ='raw data'!J120 -> 2 | D119: 2 | E119: 1 | F119: 0 | G119: 1
A120: 119 | B120: Train | C120: ='raw data'!J121 -> 1 | D120: 1 | E120: 3 | F120: 0 | G120: 1
A121: 120 | B121: Train | C121: ='raw data'!J122 -> 1 | D121: 1 | E121: 1 | F121: 0 | G121: 0
A122: 121 | B122: Train | C122: ='raw data'!J123 -> 4 | D122: 4 | E122: 3 | F122: 0 | G122: 1
A123: 122 | B123: Train | C123: ='raw data'!J124 -> 3 | D123: 3 | E123: 4 | F123: 0 | G123: 1
A124: 123 | B124: Train | C124: ='raw data'!J125 -> 1 | D124: 1 | E124: 1 | F124: 0 | G124: 0
A125: 124 | B125: Train | C125: ='raw data'!J126 -> 1 | D125: 1 | E125: 1 | F125: 0 | G125: 0
A126: 125 | B126: Train | C126: ='raw data'!J127 -> 2 | D126: 2 | E126: 4 | F126: 0 | G126: 1
A127: 126 | B127: Train | C127: ='raw data'!J128 -> 1 | D127: 1 | E127: 3 | F127: 0 | G127: 1
A128: 127 | B128: Train | C128: ='raw data'!J129 -> 4 | D128: 4 | E128: 1 | F128: 0 | G128: 1
A129: 128 | B129: Train | C129: ='raw data'!J130 -> 1 | D129: 1 | E129: 4 | F129: 0 | G129: 1
A130: 129 | B130: Train | C130: ='raw data'!J131 -> 2 | D130: 2 | E130: 2 | F130: 0 | G130: 0
A131: 130 | B131: Train | C131: ='raw data'!J132 -> 4 | D131: 4 | E131: 3 | F131: =IF(C131=D131,0,1) -> 0 | G131: =IF(C131=E131,0,1) -> 1
A132: 131 | B132: Train | C132: ='raw data'!J133 -> 1 | D132: 1 | E132: 1 | F132: 0 | G132: 0
A133: 132 | B133: Train | C133: ='raw data'!J134 -> 3 | D133: 3 | E133: 1 | F133: 0 | G133: 1
A134: 133 | B134: Train | C134: ='raw data'!J135 -> 1 | D134: 1 | E134: 1 | F134: 0 | G134: 0
A135: 134 | B135: Train | C135: ='raw data'!J136 -> 1 | D135: 1 | E135: 3 | F135: 0 | G135: 1
A136: 135 | B136: Train | C136: ='raw data'!J137 -> 2 | D136: 2 | E136: 4 | F136: 0 | G136: 1
A137: 136 | B137: Train | C137: ='raw data'!J138 -> 4 | D137: 4 | E137: 3 | F137: 0 | G137: 1
A138: 137 | B138: Train | C138: ='raw data'!J139 -> 1 | D138: 1 | E138: 3 | F138: 0 | G138: 1
A139: 138 | B139: Train | C139: ='raw data'!J140 -> 3 | D139: 3 | E139: 2 | F139: 0 | G139: 1
A140: 139 | B140: Train | C140: ='raw data'!J141 -> 3 | D140: 3 | E140: 3 | F140: 0 | G140: 0
A141: 140 | B141: Train | C141: ='raw data'!J142 -> 1 | D141: 1 | E141: 1 | F141: 0 | G141: 0
A142: 141 | B142: Train | C142: ='raw data'!J143 -> 1 | D142: 1 | E142: 1 | F142: 0 | G142: 0
A143: 142 | B143: Train | C143: ='raw data'!J144 -> 4 | D143: 4 | E143: 4 | F143: 0 | G143: 0
A144: 143 | B144: Train | C144: ='raw data'!J145 -> 1 | D144: 1 | E144: 3 | F144: 0 | G144: 1
A145: 144 | B145: Train | C145: ='raw data'!J146 -> 4 | D145: 4 | E145: 1 | F145: 0 | G145: 1
A146: 145 | B146: Train | C146: ='raw data'!J147 -> 4 | D146: 4 | E146: 1 | F146: 0 | G146: 1
A147: 146 | B147: Train | C147: ='raw data'!J148 -> 4 | D147: 4 | E147: 1 | F147: 0 | G147: 1
A148: 147 | B148: Train | C148: ='raw data'!J149 -> 4 | D148: 4 | E148: 1 | F148: 0 | G148: 1
A149: 148 | B149: Train | C149: ='raw data'!J150 -> 1 | D149: 1 | E149: 4 | F149: 0 | G149: 1
A150: 149 | B150: Train | C150: ='raw data'!J151 -> 3 | D150: 3 | E150: 2 | F150: 0 | G150: 1
A151: 150 | B151: Train | C151: ='raw data'!J152 -> 3 | D151: 3 | E151: 1 | F151: 0 | G151: 1
A152: 151 | B152: Train | C152: ='raw data'!J153 -> 3 | D152: 3 | E152: 3 | F152: 0 | G152: 0
A153: 152 | B153: Train | C153: ='raw data'!J154 -> 4 | D153: 4 | E153: 3 | F153: 0 | G153: 1
A154: 153 | B154: Train | C154: ='raw data'!J155 -> 2 | D154: 2 | E154: 2 | F154: 0 | G154: 0
A155: 154 | B155: Train | C155: ='raw data'!J156 -> 4 | D155: 4 | E155: 3 | F155: 0 | G155: 1
A156: 155 | B156: Train | C156: ='raw data'!J157 -> 2 | D156: 2 | E156: 2 | F156: 0 | G156: 0
A157: 156 | B157: Train | C157: ='raw data'!J158 -> 3 | D157: 3 | E157: 2 | F157: 0 | G157: 1
A158: 157 | B158: Train | C158: ='raw data'!J159 -> 1 | D158: 1 | E158: 1 | F158: 0 | G158: 0
A159: 158 | B159: Train | C159: ='raw data'!J160 -> 3 | D159: 3 | E159: 3 | F159: 0 | G159: 0
A160: 159 | B160: Train | C160: ='raw data'!J161 -> 3 | D160: 3 | E160: 3 | F160: 0 | G160: 0
A161: 160 | B161: Train | C161: ='raw data'!J162 -> 3 | D161: 3 | E161: 2 | F161: 0 | G161: 1
A162: 161 | B162: Train | C162: ='raw data'!J163 -> 4 | D162: 4 | E162: 1 | F162: 0 | G162: 1
A163: 162 | B163: Train | C163: ='raw data'!J164 -> 2 | D163: 2 | E163: 4 | F163: 0 | G163: 1
A164: 163 | B164: Train | C164: ='raw data'!J165 -> 2 | D164: 2 | E164: 1 | F164: 0 | G164: 1
A165: 164 | B165: Train | C165: ='raw data'!J166 -> 2 | D165: 2 | E165: 2 | F165: 0 | G165: 0
A166: 165 | B166: Train | C166: ='raw data'!J167 -> 2 | D166: 2 | E166: 1 | F166: 0 | G166: 1
A167: 166 | B167: Train | C167: ='raw data'!J168 -> 2 | D167: 2 | E167: 2 | F167: 0 | G167: 0
A168: 167 | B168: Train | C168: ='raw data'!J169 -> 4 | D168: 4 | E168: 1 | F168: 0 | G168: 1
A169: 168 | B169: Train | C169: ='raw data'!J170 -> 2 | D169: 2 | E169: 2 | F169: 0 | G169: 0
A170: 169 | B170: Train | C170: ='raw data'!J171 -> 4 | D170: 4 | E170: 3 | F170: 0 | G170: 1
A171: 170 | B171: Train | C171: ='raw data'!J172 -> 1 | D171: 1 | E171: 3 | F171: 0 | G171: 1
A172: 171 | B172: Train | C172: ='raw data'!J173 -> 4 | D172: 4 | E172: 4 | F172: 0 | G172: 0
A173: 172 | B173: Train | C173: ='raw data'!J174 -> 1 | D173: 1 | E173: 1 | F173: 0 | G173: 0
A174: 173 | B174: Train | C174: ='raw data'!J175 -> 2 | D174: 2 | E174: 2 | F174: 0 | G174: 0
A175: 174 | B175: Train | C175: ='raw data'!J176 -> 3 | D175: 3 | E175: 3 | F175: 0 | G175: 0
A176: 175 | B176: Train | C176: ='raw data'!J177 -> 4 | D176: 4 | E176: 4 | F176: 0 | G176: 0
A177: 176 | B177: Train | C177: ='raw data'!J178 -> 1 | D177: 1 | E177: 3 | F177: 0 | G177: 1
A178: 177 | B178: Train | C178: ='raw data'!J179 -> 3 | D178: 3 | E178: 2 | F178: 0 | G178: 1
A179: 178 | B179: Train | C179: ='raw data'!J180 -> 3 | D179: 3 | E179: 2 | F179: 0 | G179: 1
A180: 179 | B180: Train | C180: ='raw data'!J181 -> 3 | D180: 3 | E180: 1 | F180: 0 | G180: 1
A181: 180 | B181: Train | C181: ='raw data'!J182 -> 4 | D181: 4 | E181: 1 | F181: 0 | G181: 1
A182: 181 | B182: Train | C182: ='raw data'!J183 -> 4 | D182: 4 | E182: 1 | F182: 0 | G182: 1
A183: 182 | B183: Train | C183: ='raw data'!J184 -> 3 | D183: 3 | E183: 2 | F183: 0 | G183: 1
A184: 183 | B184: Train | C184: ='raw data'!J185 -> 1 | D184: 1 | E184: 1 | F184: 0 | G184: 0
A185: 184 | B185: Train | C185: ='raw data'!J186 -> 3 | D185: 3 | E185: 4 | F185: 0 | G185: 1
A186: 185 | B186: Train | C186: ='raw data'!J187 -> 1 | D186: 1 | E186: 3 | F186: 0 | G186: 1
A187: 186 | B187: Train | C187: ='raw data'!J188 -> 3 | D187: 3 | E187: 1 | F187: 0 | G187: 1
A188: 187 | B188: Train | C188: ='raw data'!J189 -> 2 | D188: 2 | E188: 2 | F188: 0 | G188: 0
A189: 188 | B189: Train | C189: ='raw data'!J190 -> 3 | D189: 3 | E189: 3 | F189: 0 | G189: 0
A190: 189 | B190: Train | C190: ='raw data'!J191 -> 3 | D190: 3 | E190: 4 | F190: 0 | G190: 1
A191: 190 | B191: Train | C191: ='raw data'!J192 -> 1 | D191: 1 | E191: 1 | F191: 0 | G191: 0
A192: 191 | B192: Train | C192: ='raw data'!J193 -> 3 | D192: 3 | E192: 1 | F192: 0 | G192: 1
A193: 192 | B193: Train | C193: ='raw data'!J194 -> 2 | D193: 2 | E193: 2 | F193: 0 | G193: 0
A194: 193 | B194: Train | C194: ='raw data'!J195 -> 3 | D194: 3 | E194: 3 | F194: 0 | G194: 0
A195: 194 | B195: Train | C195: ='raw data'!J196 -> 2 | D195: 2 | E195: 1 | F195: =IF(C195=D195,0,1) -> 0 | G195: =IF(C195=E195,0,1) -> 1
A196: 195 | B196: Train | C196: ='raw data'!J197 -> 1 | D196: 1 | E196: 4 | F196: 0 | G196: 1
A197: 196 | B197: Train | C197: ='raw data'!J198 -> 2 | D197: 2 | E197: 4 | F197: 0 | G197: 1
A198: 197 | B198: Train | C198: ='raw data'!J199 -> 2 | D198: 2 | E198: 2 | F198: 0 | G198: 0
A199: 198 | B199: Train | C199: ='raw data'!J200 -> 2 | D199: 2 | E199: 2 | F199: 0 | G199: 0
A200: 199 | B200: Train | C200: ='raw data'!J201 -> 1 | D200: 1 | E200: 2 | F200: 0 | G200: 1
... 1802 more rows

Sheet accuracy
A1: Estimation#1
A3: Anzahl von ID | B3: estimated room_id | G3: without any learning process
A4: real room_id | B4: 1 | C4: 2 | D4: 3 | E4: 4 | F4: Gesamtergebnis | G4: Correct estimated | H4: Accuracy | I4: Check1 | J4: Check2
A5: Test | B5: 155 | C5: 127 | D5: 178 | E5: 140 | F5: 600 | G5: =B6+C7+D8+E9 -> 573 | H5: =G5/F5 -> 0.955
A6: 1 | B6: 155 | D6: 2 | F6: 157
A7: 2 | C7: 127 | D7: 24 | F7: 151
A8: 3 | D8: 152 | E8: 1 | F8: 153
A9: 4 | E9: 139 | F9: 139
A10: Train | B10: 334 | C10: 318 | D10: 383 | E10: 365 | F10: 1400 | G10: =B11+C12+D13+E14 -> 1347 | H10: =G10/F10 -> 0.9621428571
A11: 1 | B11: 330 | D11: 11 | E11: 2 | F11: 343
A12: 2 | C12: 318 | D12: 31 | F12: 349
A13: 3 | B13: 3 | D13: 340 | E13: 4 | F13: 347
A14: 4 | B14: 1 | D14: 1 | E14: 359 | F14: 361
A15: Gesamtergebnis | B15: 489 | C15: 445 | D15: 561 | E15: 505 | F15: 2000 | G15: =G10+G5 -> 1920 | H15: =G15/F15 -> 0.96 | I15: =F15-G15 -> 80 | J15: =results!F2002 -> 80
